[Event "Late-Titled-Tuesday-Blitz-May-14-2024"]
[Site "Chess.com"]
[Date "2024.05.14"]
[Round "10"]
[White "m_ezat"]
[Black "Supelyel"]
[Result "1-0"]
[WhiteElo "2611"]
[BlackElo "2438"]
[TimeControl "180+1"]
[EndTime "15:52:08 PDT"]
[Termination "m_ezat won by resignation"]

1. e4 {[%clk 0:02:57.8]} 1... d6 {[%clk 0:02:58.1]} 2. d4 {[%clk 0:02:57.7]}
2... Nf6 {[%clk 0:02:55.8]} 3. Nd2 {[%clk 0:02:53.6]} 3... e5 {[%clk 0:02:55.2]}
4. Ngf3 {[%clk 0:02:52.9]} 4... Nbd7 {[%clk 0:02:55.2]} 5. Bc4 {[%clk
0:02:52.8]} 5... Be7 {[%clk 0:02:55.2]} 6. O-O {[%clk 0:02:53]} 6... O-O {[%clk
0:02:55.5]} 7. Re1 {[%clk 0:02:53]} 7... c6 {[%clk 0:02:56.1]} 8. a4 {[%clk
0:02:51.9]} 8... a5 {[%clk 0:02:54.9]} 9. b3 {[%clk 0:02:51.5]} 9... h6 {[%clk
0:02:53.6]} 10. Ba3 {[%clk 0:02:50.7]} 10... Re8 {[%clk 0:02:53.2]} 11. Nf1
{[%clk 0:02:49.2]} 11... Qc7 {[%clk 0:02:35.2]} 12. Ng3 {[%clk 0:02:46]} 12...
Nb6 {[%clk 0:02:35.1]} 13. Bf1 {[%clk 0:02:41.5]} 13... Bg4 {[%clk 0:02:34.3]}
14. h3 {[%clk 0:02:40]} 14... Bxf3 {[%clk 0:02:14.7]} 15. Qxf3 {[%clk
0:02:40.9]} 15... g6 {[%clk 0:02:15.2]} 16. dxe5 {[%clk 0:02:32.1]} 16... dxe5
{[%clk 0:02:15]} 17. Bxe7 {[%clk 0:02:32.2]} 17... Qxe7 {[%clk 0:02:15.9]} 18.
Qe3 {[%clk 0:02:32.3]} 18... Nbd7 {[%clk 0:02:03.4]} 19. Qxh6 {[%clk 0:02:31.3]}
19... Qf8 {[%clk 0:01:48.8]} 20. Qh4 {[%clk 0:02:29.5]} 20... Kg7 {[%clk
0:01:38.1]} 21. Re3 {[%clk 0:02:27]} 21... Qc5 {[%clk 0:01:22.1]} 22. Rd1 {[%clk
0:02:16.9]} 22... Re6 {[%clk 0:01:20.5]} 23. Bc4 {[%clk 0:02:09]} 23... Rd6
{[%clk 0:01:20.4]} 24. Rxd6 {[%clk 0:02:01.9]} 24... Qxd6 {[%clk 0:01:20.3]} 25.
Rd3 {[%clk 0:01:57.5]} 25... Qe7 {[%clk 0:01:02.9]} 26. Nf5+ {[%clk 0:01:45.7]}
26... gxf5 {[%clk 0:00:49.5]} 27. Rg3+ {[%clk 0:01:44.1]} 1-0

[Event "Late-Titled-Tuesday-Blitz-May-14-2024"]
[Site "Chess.com"]
[Date "2024.05.14"]
[Round "10"]
[White "Evgeny81"]
[Black "DeArron_Fox"]
[Result "1-0"]
[WhiteElo "2764"]
[BlackElo "2550"]
[TimeControl "180+1"]
[EndTime "15:52:09 PDT"]
[Termination "Evgeny81 won on time"]

1. e4 {[%clk 0:03:00.9]} 1... c5 {[%clk 0:02:59.9]} 2. c3 {[%clk 0:02:59.3]}
2... d5 {[%clk 0:02:59.8]} 3. exd5 {[%clk 0:02:58.8]} 3... Qxd5 {[%clk
0:03:00.7]} 4. d4 {[%clk 0:02:59.1]} 4... Nf6 {[%clk 0:03:01.2]} 5. Nf3 {[%clk
0:02:59.3]} 5... e6 {[%clk 0:03:00.6]} 6. Be2 {[%clk 0:02:59.3]} 6... Nc6 {[%clk
0:02:56]} 7. O-O {[%clk 0:02:58.9]} 7... cxd4 {[%clk 0:02:55.7]} 8. cxd4 {[%clk
0:02:58.9]} 8... Be7 {[%clk 0:02:55.3]} 9. Nc3 {[%clk 0:02:59.4]} 9... Qd8
{[%clk 0:02:52.6]} 10. Bd3 {[%clk 0:02:56.6]} 10... O-O {[%clk 0:02:52.2]} 11.
Qe2 {[%clk 0:02:57]} 11... b6 {[%clk 0:02:33.1]} 12. Rd1 {[%clk 0:02:52.2]}
12... Bb7 {[%clk 0:02:33.5]} 13. Be3 {[%clk 0:02:47.6]} 13... Nb4 {[%clk
0:02:26]} 14. Bb1 {[%clk 0:02:45.2]} 14... Rc8 {[%clk 0:02:25.4]} 15. a3 {[%clk
0:02:44.7]} 15... Nbd5 {[%clk 0:02:24.3]} 16. Bd2 {[%clk 0:02:41.2]} 16... Bd6
{[%clk 0:01:52.5]} 17. Ne5 {[%clk 0:02:39.3]} 17... a6 {[%clk 0:01:11.3]} 18.
Bd3 {[%clk 0:02:38.1]} 18... b5 {[%clk 0:01:10.4]} 19. Ne4 {[%clk 0:02:32.2]}
19... Nxe4 {[%clk 0:00:52.8]} 20. Bxe4 {[%clk 0:02:27.6]} 20... Qe7 {[%clk
0:00:32.7]} 21. Qf3 {[%clk 0:02:12.3]} 21... Ba8 {[%clk 0:00:28.6]} 22. Qh3
{[%clk 0:02:09.9]} 22... Nf6 {[%clk 0:00:28.5]} 23. Bxa8 {[%clk 0:02:06.4]}
23... Rxa8 {[%clk 0:00:28.2]} 24. Bg5 {[%clk 0:02:07.2]} 24... Rfc8 {[%clk
0:00:10.9]} 25. Ng4 {[%clk 0:02:05.7]} 25... Kh8 {[%clk 0:00:06.6]} 26. Qh4
{[%clk 0:02:02.2]} 26... Nxg4 {[%clk 0:00:00.9]} 27. Bxe7 {[%clk 0:02:01.4]} 1-0

[Event "Late-Titled-Tuesday-Blitz-May-14-2024"]
[Site "Chess.com"]
[Date "2024.05.14"]
[Round "10"]
[White "campochess"]
[Black "mouseslips_are_the_best"]
[Result "0-1"]
[WhiteElo "2132"]
[BlackElo "2374"]
[TimeControl "180+1"]
[EndTime "15:52:10 PDT"]
[Termination "mouseslips_are_the_best won by resignation"]

1. e4 {[%clk 0:02:59.5]} 1... e6 {[%clk 0:02:58.5]} 2. Qe2 {[%clk 0:02:58.8]}
2... c5 {[%clk 0:02:57.6]} 3. Nf3 {[%clk 0:02:56.5]} 3... Nc6 {[%clk 0:02:58]}
4. b3 {[%clk 0:02:56.4]} 4... Nf6 {[%clk 0:02:46.4]} 5. Bb2 {[%clk 0:02:56]}
5... d5 {[%clk 0:02:45.1]} 6. exd5 {[%clk 0:02:54.9]} 6... Nxd5 {[%clk 0:02:45]}
7. Nc3 {[%clk 0:02:54]} 7... Nd4 {[%clk 0:02:32.8]} 8. Nxd4 {[%clk 0:02:52.3]}
8... cxd4 {[%clk 0:02:33.7]} 9. Nxd5 {[%clk 0:02:52.2]} 9... Qxd5 {[%clk
0:02:34.2]} 10. Qb5+ {[%clk 0:02:51.9]} 10... Qxb5 {[%clk 0:02:32.1]} 11. Bxb5+
{[%clk 0:02:51.4]} 11... Bd7 {[%clk 0:02:32.2]} 12. Bxd7+ {[%clk 0:02:49.1]}
12... Kxd7 {[%clk 0:02:32.8]} 13. c3 {[%clk 0:02:49.1]} 13... d3 {[%clk
0:02:26.4]} 14. O-O {[%clk 0:02:44.4]} 14... e5 {[%clk 0:02:24.8]} 15. Rfe1
{[%clk 0:02:44.3]} 15... Bd6 {[%clk 0:02:24.7]} 16. c4 {[%clk 0:02:43.2]} 16...
Rhe8 {[%clk 0:02:23.6]} 17. f3 {[%clk 0:02:41.2]} 17... Bb4 {[%clk 0:02:19.4]}
18. Bc3 {[%clk 0:02:33.8]} 18... Bxc3 {[%clk 0:02:18]} 19. dxc3 {[%clk
0:02:33.8]} 19... Kc6 {[%clk 0:02:18.4]} 20. Rad1 {[%clk 0:02:33.5]} 20... Rad8
{[%clk 0:02:17.2]} 21. Re3 {[%clk 0:02:33]} 21... d2 {[%clk 0:02:17.1]} 22. Kf2
{[%clk 0:02:32.9]} 22... f5 {[%clk 0:02:13.9]} 23. Ke2 {[%clk 0:02:32.2]} 23...
e4 {[%clk 0:02:04.8]} 24. Rxd2 {[%clk 0:02:29.3]} 24... exf3+ {[%clk 0:02:04.4]}
25. gxf3 {[%clk 0:02:26.1]} 25... f4 {[%clk 0:01:59.7]} 26. Rxe8 {[%clk
0:02:22.1]} 26... Rxe8+ {[%clk 0:02:00.6]} 27. Kf2 {[%clk 0:02:21.8]} 27... Re3
{[%clk 0:01:58]} 28. Rc2 {[%clk 0:02:19.8]} 28... g5 {[%clk 0:01:51.8]} 29. b4
{[%clk 0:02:19.7]} 29... h5 {[%clk 0:01:52.1]} 30. h3 {[%clk 0:02:18.8]} 30...
a6 {[%clk 0:01:47]} 31. a4 {[%clk 0:02:18.3]} 31... a5 {[%clk 0:01:45.8]} 32.
Kg2 {[%clk 0:02:11.6]} 32... b6 {[%clk 0:01:39.9]} 33. Kf2 {[%clk 0:02:11.2]}
33... Kc7 {[%clk 0:01:34]} 34. c5 {[%clk 0:02:03.2]} 34... bxc5 {[%clk
0:01:32.1]} 35. bxa5 {[%clk 0:02:02.4]} 35... Kb7 {[%clk 0:01:31.2]} 36. Rb2+
{[%clk 0:02:01.6]} 36... Ka6 {[%clk 0:01:31]} 37. Rb6+ {[%clk 0:02:00.8]} 37...
Kxa5 {[%clk 0:01:30.5]} 38. Rg6 {[%clk 0:02:00.5]} 38... Rxc3 {[%clk 0:01:26]}
39. Rxg5 {[%clk 0:02:00.3]} 39... Rc2+ {[%clk 0:01:23.3]} 40. Kf1 {[%clk
0:01:59.4]} 40... Rc1+ {[%clk 0:01:23.5]} 41. Kf2 {[%clk 0:01:58.7]} 41... Rc2+
{[%clk 0:01:23.3]} 42. Kf1 {[%clk 0:01:58.1]} 42... Rc1+ {[%clk 0:01:22.9]} 43.
Kf2 {[%clk 0:01:58.3]} 43... Kxa4 {[%clk 0:01:23.3]} 44. Rxh5 {[%clk 0:01:57.7]}
44... c4 {[%clk 0:01:23.8]} 45. Rf5 {[%clk 0:01:57.8]} 45... c3 {[%clk
0:01:22.2]} 46. Rxf4+ {[%clk 0:01:57.9]} 46... Kb3 {[%clk 0:01:22.8]} 47. Rf8
{[%clk 0:01:57]} 47... Rh1 {[%clk 0:01:20.3]} 48. Kg3 {[%clk 0:01:56.3]} 48...
c2 {[%clk 0:01:19.8]} 49. Rc8 {[%clk 0:01:56.2]} 49... c1=Q {[%clk 0:01:18.7]}
50. Rxc1 {[%clk 0:01:54.8]} 50... Rxc1 {[%clk 0:01:19.3]} 51. f4 {[%clk
0:01:54.3]} 51... Kc4 {[%clk 0:01:19.6]} 52. f5 {[%clk 0:01:53.5]} 52... Kd5
{[%clk 0:01:19.9]} 53. Kf4 {[%clk 0:01:53.5]} 53... Rf1+ {[%clk 0:01:19.5]} 54.
Kg4 {[%clk 0:01:52.5]} 54... Ke5 {[%clk 0:01:19.3]} 0-1

[Event "Late-Titled-Tuesday-Blitz-May-14-2024"]
[Site "Chess.com"]
[Date "2024.05.14"]
[Round "10"]
[White "Kacparov"]
[Black "MatthewG-p4p"]
[Result "0-1"]
[WhiteElo "2916"]
[BlackElo "2852"]
[TimeControl "180+1"]
[EndTime "15:52:45 PDT"]
[Termination "MatthewG-p4p won by checkmate"]

1. e4 {[%clk 0:03:00.9]} 1... e6 {[%clk 0:02:58.2]} 2. d4 {[%clk 0:03:00.6]}
2... d5 {[%clk 0:02:59.1]} 3. Nd2 {[%clk 0:03:00.5]} 3... a6 {[%clk 0:02:58.2]}
4. Ngf3 {[%clk 0:03:00.3]} 4... Nf6 {[%clk 0:02:58.2]} 5. Bd3 {[%clk 0:03:00.2]}
5... c5 {[%clk 0:02:58.5]} 6. dxc5 {[%clk 0:02:56.7]} 6... dxe4 {[%clk
0:02:58.2]} 7. Nxe4 {[%clk 0:02:55.8]} 7... Nxe4 {[%clk 0:02:58.6]} 8. Bxe4
{[%clk 0:02:56.7]} 8... Qxd1+ {[%clk 0:02:59]} 9. Kxd1 {[%clk 0:02:56.9]} 9...
Bxc5 {[%clk 0:02:59.9]} 10. Ke2 {[%clk 0:02:56.2]} 10... Nd7 {[%clk 0:03:00.7]}
11. Rd1 {[%clk 0:02:53.7]} 11... Nf6 {[%clk 0:02:58.4]} 12. Bd3 {[%clk
0:02:53.5]} 12... b6 {[%clk 0:02:57]} 13. c3 {[%clk 0:02:37.8]} 13... Bb7 {[%clk
0:02:56.7]} 14. a4 {[%clk 0:02:33.6]} 14... O-O {[%clk 0:02:55.8]} 15. a5 {[%clk
0:02:30.4]} 15... b5 {[%clk 0:02:55.3]} 16. Be3 {[%clk 0:02:28.6]} 16... Bxe3
{[%clk 0:02:49.9]} 17. fxe3 {[%clk 0:02:29.5]} 17... Rfd8 {[%clk 0:02:41.2]} 18.
g3 {[%clk 0:02:25.3]} 18... Kf8 {[%clk 0:02:39.4]} 19. Nd4 {[%clk 0:02:20.9]}
19... Ke7 {[%clk 0:02:37.9]} 20. Nc2 {[%clk 0:02:10]} 20... Ng4 {[%clk
0:02:36.4]} 21. Nb4 {[%clk 0:01:19.6]} 21... Ne5 {[%clk 0:02:31.4]} 22. Rf1
{[%clk 0:01:10.3]} 22... Nxd3 {[%clk 0:02:16.3]} 23. Nxd3 {[%clk 0:01:10.1]}
23... Bd5 {[%clk 0:02:16.9]} 24. Rfd1 {[%clk 0:00:44.9]} 24... Bc4 {[%clk
0:02:12.2]} 25. e4 {[%clk 0:00:44]} 25... f5 {[%clk 0:01:42.5]} 26. exf5 {[%clk
0:00:41.9]} 26... exf5 {[%clk 0:01:42.8]} 27. Ke3 {[%clk 0:00:42]} 27... Kf6
{[%clk 0:01:41.3]} 28. Nc5 {[%clk 0:00:16.5]} 28... Re8+ {[%clk 0:01:40.8]} 29.
Kf2 {[%clk 0:00:16.8]} 29... Re2+ {[%clk 0:01:41.1]} 30. Kg1 {[%clk 0:00:17.4]}
30... Rxb2 {[%clk 0:01:38.3]} 31. Rd6+ {[%clk 0:00:17.4]} 31... Kg5 {[%clk
0:01:37]} 32. Rxa6 {[%clk 0:00:16.8]} 32... Re8 {[%clk 0:01:36.1]} 33. Rd6
{[%clk 0:00:11.2]} 33... Ree2 {[%clk 0:01:36.1]} 34. a6 {[%clk 0:00:07.6]} 34...
Rg2+ {[%clk 0:01:36.2]} 35. Kh1 {[%clk 0:00:07.8]} 35... Rxh2+ {[%clk
0:01:37.1]} 36. Kg1 {[%clk 0:00:08.3]} 36... Rbg2# {[%clk 0:01:38]} 0-1

[Event "Late-Titled-Tuesday-Blitz-May-14-2024"]
[Site "Chess.com"]
[Date "2024.05.14"]
[Round "10"]
[White "bubeliang"]
[Black "ATM622"]
[Result "1-0"]
[WhiteElo "2798"]
[BlackElo "2556"]
[TimeControl "180+1"]
[EndTime "15:52:49 PDT"]
[Termination "bubeliang won by resignation"]

1. e4 {[%clk 0:03:00.9]} 1... c6 {[%clk 0:02:59.8]} 2. d4 {[%clk 0:02:57.5]}
2... d5 {[%clk 0:03:00.1]} 3. Nd2 {[%clk 0:02:57.9]} 3... dxe4 {[%clk 0:03:00]}
4. Nxe4 {[%clk 0:02:58.8]} 4... Bf5 {[%clk 0:02:59.9]} 5. Ng3 {[%clk 0:02:58.9]}
5... Bg6 {[%clk 0:03:00.2]} 6. Nh3 {[%clk 0:02:59.5]} 6... e6 {[%clk 0:02:58.7]}
7. Nf4 {[%clk 0:02:59.3]} 7... Bd6 {[%clk 0:02:59.2]} 8. h4 {[%clk 0:02:59.1]}
8... Bxf4 {[%clk 0:02:56.6]} 9. Bxf4 {[%clk 0:03:00]} 9... h5 {[%clk 0:02:50.6]}
10. c3 {[%clk 0:02:59]} 10... Nf6 {[%clk 0:02:49.1]} 11. Bg5 {[%clk 0:02:56.1]}
11... Nbd7 {[%clk 0:02:46.7]} 12. Bd3 {[%clk 0:02:55.8]} 12... Bxd3 {[%clk
0:02:37]} 13. Qxd3 {[%clk 0:02:56.7]} 13... Qb6 {[%clk 0:02:36.2]} 14. Qe2
{[%clk 0:02:56.4]} 14... Qb5 {[%clk 0:02:31.1]} 15. Qxb5 {[%clk 0:02:51]} 15...
cxb5 {[%clk 0:02:32]} 16. Ke2 {[%clk 0:02:51.9]} 16... O-O-O {[%clk 0:02:24.4]}
17. a4 {[%clk 0:02:50.9]} 17... bxa4 {[%clk 0:02:14.6]} 18. Rxa4 {[%clk
0:02:51.8]} 18... a6 {[%clk 0:02:12]} 19. Rha1 {[%clk 0:02:42.8]} 19... Nb6
{[%clk 0:02:05]} 20. Ra5 {[%clk 0:02:38.2]} 20... Rd5 {[%clk 0:02:03.7]} 21.
Bxf6 {[%clk 0:02:37.4]} 21... gxf6 {[%clk 0:02:03.4]} 22. Ne4 {[%clk 0:02:37.2]}
22... f5 {[%clk 0:01:56.7]} 23. Rxd5 {[%clk 0:02:34.2]} 23... Nxd5 {[%clk
0:01:51.8]} 24. Nd6+ {[%clk 0:02:33.8]} 24... Kc7 {[%clk 0:01:51.7]} 25. Nxf7
{[%clk 0:02:33.9]} 25... Rf8 {[%clk 0:01:44.6]} 26. Ne5 {[%clk 0:02:29.3]} 26...
Nf4+ {[%clk 0:01:44.1]} 27. Kf3 {[%clk 0:02:29.2]} 27... Nd5 {[%clk 0:01:43.6]}
28. g3 {[%clk 0:02:29.4]} 28... f4 {[%clk 0:01:39.5]} 29. g4 {[%clk 0:02:28.8]}
29... hxg4+ {[%clk 0:01:39.8]} 30. Nxg4 {[%clk 0:02:29.3]} 30... Rh8 {[%clk
0:01:38.6]} 31. Rh1 {[%clk 0:02:29.7]} 31... b5 {[%clk 0:01:37.1]} 32. h5 {[%clk
0:02:29.5]} 32... Kd6 {[%clk 0:01:36.1]} 33. h6 {[%clk 0:02:28.8]} 33... Ke7
{[%clk 0:01:36.4]} 34. Ne5 {[%clk 0:02:26.1]} 34... Kf6 {[%clk 0:01:34.4]} 35.
Rg1 {[%clk 0:02:24.8]} 35... Kf5 {[%clk 0:01:28.2]} 36. Ng4 {[%clk 0:02:24.1]}
36... Ne7 {[%clk 0:01:12.7]} 37. Re1 {[%clk 0:02:21.6]} 37... Ng6 {[%clk
0:01:09.3]} 38. Rh1 {[%clk 0:02:20.9]} 38... Kg5 {[%clk 0:01:01.2]} 39. Ne5
{[%clk 0:02:19.8]} 39... Nxe5+ {[%clk 0:00:34]} 40. dxe5 {[%clk 0:02:20.7]}
40... Rxh6 {[%clk 0:00:24.7]} 41. Rxh6 {[%clk 0:02:19.5]} 41... Kxh6 {[%clk
0:00:25.6]} 42. Kxf4 {[%clk 0:02:20.4]} 42... Kh5 {[%clk 0:00:17]} 43. b4 {[%clk
0:02:14.4]} 43... Kh4 {[%clk 0:00:16]} 44. f3 {[%clk 0:02:13.8]} 44... Kh5
{[%clk 0:00:15.5]} 45. Kg3 {[%clk 0:02:12.6]} 45... Kg5 {[%clk 0:00:15.1]} 46.
f4+ {[%clk 0:02:13]} 46... Kf5 {[%clk 0:00:10.2]} 47. Kf3 {[%clk 0:02:13.4]}
47... Kg6 {[%clk 0:00:06.8]} 48. Ke4 {[%clk 0:02:14.3]} 48... Kf7 {[%clk
0:00:03.2]} 49. f5 {[%clk 0:02:14.6]} 49... exf5+ {[%clk 0:00:01.4]} 50. Kxf5
{[%clk 0:02:15.5]} 50... Ke7 {[%clk 0:00:02.1]} 51. e6 {[%clk 0:02:16.1]} 51...
a5 {[%clk 0:00:03]} 52. bxa5 {[%clk 0:02:15.9]} 1-0

[Event "Late-Titled-Tuesday-Blitz-May-14-2024"]
[Site "Chess.com"]
[Date "2024.05.14"]
[Round "10"]
[White "jeetjain"]
[Black "alexrustemov"]
[Result "1/2-1/2"]
[WhiteElo "2586"]
[BlackElo "2881"]
[TimeControl "180+1"]
[EndTime "15:52:56 PDT"]
[Termination "Game drawn by repetition"]

1. Nf3 {[%clk 0:02:49.7]} 1... d5 {[%clk 0:02:55.9]} 2. b3 {[%clk 0:02:49.6]}
2... Bf5 {[%clk 0:02:54.5]} 3. Bb2 {[%clk 0:02:49.7]} 3... e6 {[%clk 0:02:55]}
4. e3 {[%clk 0:02:50.1]} 4... Nf6 {[%clk 0:02:55.4]} 5. d4 {[%clk 0:02:50.4]}
5... Nbd7 {[%clk 0:02:51.4]} 6. Bd3 {[%clk 0:02:50.8]} 6... Bd6 {[%clk
0:02:48.5]} 7. O-O {[%clk 0:02:49]} 7... O-O {[%clk 0:02:46.9]} 8. c4 {[%clk
0:02:49.1]} 8... c6 {[%clk 0:02:46.6]} 9. Nc3 {[%clk 0:02:45.7]} 9... Bxd3
{[%clk 0:02:29.7]} 10. Qxd3 {[%clk 0:02:45.2]} 10... Re8 {[%clk 0:02:26.9]} 11.
e4 {[%clk 0:02:44.2]} 11... dxe4 {[%clk 0:02:25.9]} 12. Nxe4 {[%clk 0:02:45.1]}
12... Nxe4 {[%clk 0:02:25.3]} 13. Qxe4 {[%clk 0:02:46]} 13... Qa5 {[%clk
0:02:24.9]} 14. a3 {[%clk 0:02:38.9]} 14... Rad8 {[%clk 0:02:18.1]} 15. b4
{[%clk 0:02:38.2]} 15... Qh5 {[%clk 0:02:14.3]} 16. h3 {[%clk 0:02:37.3]} 16...
Qg6 {[%clk 0:02:13.5]} 17. Qxg6 {[%clk 0:02:36.2]} 17... hxg6 {[%clk 0:02:13]}
18. Rad1 {[%clk 0:02:37.1]} 18... b5 {[%clk 0:02:12.1]} 19. Rc1 {[%clk
0:02:30.3]} 19... Bf4 {[%clk 0:02:08]} 20. Rc2 {[%clk 0:02:29.1]} 20... Nb6
{[%clk 0:02:08.4]} 21. cxb5 {[%clk 0:02:22]} 21... cxb5 {[%clk 0:02:08.5]} 22.
Rc5 {[%clk 0:02:21.6]} 22... a6 {[%clk 0:02:06.9]} 23. Rc6 {[%clk 0:02:21]}
23... Nc4 {[%clk 0:01:59.5]} 24. Bc1 {[%clk 0:02:20.4]} 24... Rd6 {[%clk
0:01:57.5]} 25. Rxc4 {[%clk 0:02:11.6]} 25... bxc4 {[%clk 0:01:42.8]} 26. Bxf4
{[%clk 0:02:12]} 26... Rc6 {[%clk 0:01:42.2]} 27. Rc1 {[%clk 0:02:09.7]} 27...
f6 {[%clk 0:01:40.2]} 28. Rc3 {[%clk 0:02:08.7]} 28... g5 {[%clk 0:01:34.4]} 29.
Be3 {[%clk 0:02:08]} 29... Kf7 {[%clk 0:01:30.4]} 30. Nd2 {[%clk 0:02:07.3]}
30... Rec8 {[%clk 0:01:28.4]} 31. Ne4 {[%clk 0:02:07.4]} 31... Rb8 {[%clk
0:01:11.7]} 32. Rxc4 {[%clk 0:02:02.2]} 32... Rxc4 {[%clk 0:01:07.7]} 33. Nd6+
{[%clk 0:02:02]} 33... Ke7 {[%clk 0:01:08.2]} 34. Nxc4 {[%clk 0:02:02.9]} 34...
Rc8 {[%clk 0:01:04.5]} 35. Nb6 {[%clk 0:01:51.3]} 35... Rc3 {[%clk 0:01:01]} 36.
a4 {[%clk 0:01:50]} 36... Kd6 {[%clk 0:00:52.7]} 37. a5 {[%clk 0:01:41.1]} 37...
Rb3 {[%clk 0:00:48.9]} 38. Bd2 {[%clk 0:01:38.1]} 38... Rb1+ {[%clk 0:00:43.7]}
39. Kh2 {[%clk 0:01:38]} 39... Kc6 {[%clk 0:00:43.2]} 40. Kg3 {[%clk 0:01:20.9]}
40... Rb2 {[%clk 0:00:42.6]} 41. Be1 {[%clk 0:01:16.5]} 41... Rb1 {[%clk
0:00:42.4]} 42. Bd2 {[%clk 0:01:15.7]} 42... Rb2 {[%clk 0:00:41.8]} 43. Be1
{[%clk 0:01:12.7]} 43... Rb1 {[%clk 0:00:42]} 44. Bd2 {[%clk 0:01:11.7]} 1/2-1/2

[Event "Late-Titled-Tuesday-Blitz-May-14-2024"]
[Site "Chess.com"]
[Date "2024.05.14"]
[Round "10"]
[White "Hirna2005"]
[Black "VictorFcQNK"]
[Result "1-0"]
[WhiteElo "2324"]
[BlackElo "2143"]
[TimeControl "180+1"]
[EndTime "15:52:56 PDT"]
[Termination "Hirna2005 won by resignation"]

1. e4 {[%clk 0:03:00.9]} 1... e6 {[%clk 0:02:59.6]} 2. d4 {[%clk 0:03:00.9]}
2... d5 {[%clk 0:02:58.7]} 3. e5 {[%clk 0:03:01.5]} 3... c5 {[%clk 0:02:56.5]}
4. c3 {[%clk 0:03:02.1]} 4... Nc6 {[%clk 0:02:54.5]} 5. Be3 {[%clk 0:03:02.5]}
5... Qb6 {[%clk 0:02:39]} 6. Qd2 {[%clk 0:03:02.7]} 6... f6 {[%clk 0:02:35.5]}
7. Nf3 {[%clk 0:03:01.4]} 7... fxe5 {[%clk 0:02:33.1]} 8. Nxe5 {[%clk
0:03:01.3]} 8... Nxe5 {[%clk 0:02:24.1]} 9. dxe5 {[%clk 0:03:01.5]} 9... Be7
{[%clk 0:02:21.5]} 10. Bd3 {[%clk 0:02:58.9]} 10... Bd7 {[%clk 0:02:05.8]} 11.
O-O {[%clk 0:02:57.9]} 11... O-O-O {[%clk 0:01:54.1]} 12. b4 {[%clk 0:02:56]}
12... h6 {[%clk 0:01:49.2]} 13. a4 {[%clk 0:02:54.1]} 13... Qc7 {[%clk 0:01:46]}
14. bxc5 {[%clk 0:02:49.2]} 14... Bxc5 {[%clk 0:01:45.3]} 15. Bd4 {[%clk
0:02:48.3]} 15... Ne7 {[%clk 0:01:43.4]} 16. Na3 {[%clk 0:02:47.1]} 16... Bxa3
{[%clk 0:01:18.8]} 17. Rxa3 {[%clk 0:02:44.3]} 17... Nc6 {[%clk 0:01:19.4]} 18.
Qe3 {[%clk 0:02:33]} 18... Kb8 {[%clk 0:01:16]} 19. Rb1 {[%clk 0:02:32.1]} 19...
Nxd4 {[%clk 0:00:51.9]} 20. cxd4 {[%clk 0:02:21.8]} 20... Bc6 {[%clk 0:00:51.9]}
21. a5 {[%clk 0:02:20.7]} 21... Ka8 {[%clk 0:00:49.5]} 22. Qd2 {[%clk
0:02:12.3]} 22... Rhf8 {[%clk 0:00:46.3]} 23. Qb4 {[%clk 0:02:09.3]} 23... Rf4
{[%clk 0:00:37.1]} 24. g3 {[%clk 0:02:07.6]} 24... Rf3 {[%clk 0:00:29]} 25. a6
{[%clk 0:01:53.1]} 25... b6 {[%clk 0:00:25.5]} 26. Rc3 {[%clk 0:01:53.2]} 26...
Qd7 {[%clk 0:00:18.1]} 27. Rbc1 {[%clk 0:01:49.7]} 27... Rc8 {[%clk 0:00:16.8]}
28. Kg2 {[%clk 0:01:40.3]} 28... Rff8 {[%clk 0:00:14.3]} 29. Rxc6 {[%clk
0:01:23.2]} 29... Rce8 {[%clk 0:00:14]} 30. Rc7 {[%clk 0:01:16.3]} 30... Qd8
{[%clk 0:00:14.1]} 31. Bb5 {[%clk 0:01:12.7]} 31... Re7 {[%clk 0:00:12.7]} 32.
Qxe7 {[%clk 0:01:11]} 1-0

[Event "Late-Titled-Tuesday-Blitz-May-14-2024"]
[Site "Chess.com"]
[Date "2024.05.14"]
[Round "10"]
[White "KorolDimitriy75"]
[Black "VladimirBugayev"]
[Result "0-1"]
[WhiteElo "2399"]
[BlackElo "2339"]
[TimeControl "180+1"]
[EndTime "15:52:58 PDT"]
[Termination "VladimirBugayev won on time"]

1. d4 {[%clk 0:03:00.9]} 1... Nf6 {[%clk 0:02:58.5]} 2. c4 {[%clk 0:03:01.4]}
2... c5 {[%clk 0:02:59]} 3. d5 {[%clk 0:03:01.2]} 3... b5 {[%clk 0:02:59.7]} 4.
Nd2 {[%clk 0:03:01.5]} 4... b4 {[%clk 0:02:52.9]} 5. e4 {[%clk 0:03:01.3]} 5...
d6 {[%clk 0:02:53.5]} 6. Ngf3 {[%clk 0:03:00.9]} 6... g6 {[%clk 0:02:53.9]} 7.
b3 {[%clk 0:03:00.8]} 7... Bg7 {[%clk 0:02:53.9]} 8. Bb2 {[%clk 0:03:01.1]} 8...
O-O {[%clk 0:02:54.4]} 9. h3 {[%clk 0:02:59.4]} 9... a5 {[%clk 0:02:54.7]} 10.
a4 {[%clk 0:02:57.4]} 10... bxa3 {[%clk 0:02:52.8]} 11. Rxa3 {[%clk 0:02:57.1]}
11... Na6 {[%clk 0:02:52.5]} 12. Bd3 {[%clk 0:02:57.1]} 12... Nb4 {[%clk
0:02:52.6]} 13. Bb1 {[%clk 0:02:57.3]} 13... e5 {[%clk 0:02:52]} 14. dxe6 {[%clk
0:02:54.9]} 14... fxe6 {[%clk 0:02:44.5]} 15. O-O {[%clk 0:02:51.9]} 15... e5
{[%clk 0:02:44.4]} 16. Re1 {[%clk 0:02:06.3]} 16... Nh5 {[%clk 0:02:34.9]} 17.
Nf1 {[%clk 0:01:50.1]} 17... Nf4 {[%clk 0:02:11.2]} 18. Ne3 {[%clk 0:01:14.7]}
18... Ra7 {[%clk 0:01:53]} 19. Nd5 {[%clk 0:00:39.8]} 19... Raf7 {[%clk
0:01:45.5]} 20. Nxf4 {[%clk 0:00:16.4]} 20... Rxf4 {[%clk 0:01:44.5]} 21. Bc1
{[%clk 0:00:16.8]} 21... Rxf3 {[%clk 0:01:43.8]} 22. gxf3 {[%clk 0:00:16]} 22...
Bxh3 {[%clk 0:01:43.4]} 23. f4 {[%clk 0:00:12.1]} 23... Qh4 {[%clk 0:01:40.9]}
24. Qf3 {[%clk 0:00:11.2]} 24... exf4 {[%clk 0:01:36.9]} 25. Rxa5 {[%clk
0:00:09.7]} 25... Be5 {[%clk 0:01:24.2]} 26. Ra7 {[%clk 0:00:04.3]} 26... Bg4
{[%clk 0:01:24]} 27. Qh1 {[%clk 0:00:03.7]} 27... Bh3 {[%clk 0:01:20.7]} 28. Qh2
{[%clk 0:00:02.6]} 28... f3 {[%clk 0:01:17.9]} 29. Qh1 {[%clk 0:00:01.8]} 29...
Qg4+ {[%clk 0:01:16.9]} 0-1